bitfinex-derivatives/quotes_SOLF0:USTF0_20250808
["timestamp","ask_amount","ask_price","bid_price","bid_amount"]
[1754671887811,3.3,175.7,175.69,3.07]
[1754671888707,12.71788097,175.73,175.69,3.07]
[1754671889011,3.3,175.7,175.69,3.07]
[1754671889715,3.3,175.69,175.68,7.1986734]
[1754671889911,3.3,175.69,175.68,4.1286734]
[1754671890416,3.3,175.71,175.68,7.1986734]
[1754671890613,3.3,175.71,175.7,4.09223289]
[1754671890814,12.71788097,175.73,175.68,4.1286734]
[1754671891015,3.3,175.72,175.68,4.1286734]
[1754671892315,8.9915,175.69,175.68,4.1286734]
[1754671892815,8.9915,175.69,175.68,0.03644051]
[1754671896924,8.9915,175.69,175.68,3.03644051]
[1754671898025,8.9915,175.69,175.68,0.03644051]
[1754671898527,8.9915,175.69,175.68,7.1286734]
[1754671898720,5.6912,175.7,175.68,4.1286734]
[1754671898923,8.7412,175.7,175.69,3.0]
[1754671899327,5.6912,175.7,175.69,3.0]
[1754671899627,8.7409,175.71,175.69,3.0]
[1754671899924,8.7409,175.71,175.68,4.1286734]
[1754671899925,8.7409,175.71,175.7,7.09223289]
[1754671900121,5.6906,175.72,175.7,7.09223289]
[1754671900322,8.7406,175.72,175.71,3.0]
[1754671900622,5.6902,175.73,175.71,3.0]
[1754671900827,5.6902,175.73,175.64,140.46]
[1754671900828,3.05,175.73,175.72,7.09223289]
[1754671901528,3.05,175.73,175.72,4.09223289]
[1754671902329,5.6902,175.73,175.72,4.09223289]
[1754671902535,8.7402,175.73,175.72,4.09223289]
[1754671903628,5.6905,175.72,175.71,0.03724236]
[1754671903828,8.7405,175.72,175.71,4.12947525]
[1754671907131,8.7405,175.72,175.71,7.12947525]
[1754671908633,8.7405,175.72,175.71,4.12947525]
[1754671909134,8.7405,175.72,175.71,0.03724236]
[1754671909336,5.6903,175.73,175.71,3.03724236]
[1754671909533,3.05,175.75,175.73,3.0]
[1754671909735,182.6756373,175.8,175.74,4.09223289]
[1754671909933,3.05,175.76,175.75,3.0]
[1754671910145,8.7392,175.76,175.75,3.0]
[1754671910932,5.6892,175.76,175.75,3.0]
[1754671911240,8.7392,175.76,175.75,3.0]
[1754671912841,8.7392,175.76,175.74,7.1295258]
[1754671913142,8.7392,175.76,175.75,3.0]
[1754671914941,3.05,175.76,175.75,3.0]
[1754671915244,8.7388,175.78,175.75,3.0]
[1754671915439,3.05,175.78,175.77,7.09223289]
[1754671917242,3.05,175.8,175.79,3.0]
[1754671917449,3.05,175.8,175.79,7.09223289]
[1754671917943,8.7379,175.8,175.79,7.09223289]
[1754671918139,12.71788097,175.85,175.79,4.09223289]
[1754671918344,393.9309,175.88,175.8,3.0]
[1754671918345,3.05,175.81,175.8,3.0]
[1754671918538,3.05,175.83,175.82,3.0]
[1754671918946,8.7371,175.83,175.81,4.09223289]
[1754671919147,3.05,175.87,175.83,3.0]
[1754671919344,3.05,175.87,175.84,4.09223289]
[1754671920044,3.05,175.88,175.84,4.09223289]
[1754671920248,8.7366,175.85,175.84,0.03602446]
[1754671921549,3.05,175.9,175.84,4.12825735]
[1754671921850,3.05,175.9,175.85,4.09223289]
[1754671922052,5.6859,175.86,175.85,7.09223289]
[1754671922247,8.7359,175.86,175.85,7.09223289]
[1754671923248,5.6859,175.86,175.85,7.09223289]
[1754671924050,8.7359,175.86,175.85,7.09223289]
[1754671924350,5.6863,175.85,175.84,0.03602446]
[1754671924552,8.7363,175.85,175.84,7.12825735]
[1754671925548,8.7363,175.85,175.84,4.12825735]
[1754671927556,8.7363,175.85,175.84,7.40825735]
[1754671929354,8.7363,175.85,175.84,4.12825735]
[1754671931754,8.7363,175.85,175.84,0.03602446]
[1754671934662,8.7363,175.85,175.84,2.446e-05]
[1754671934963,3.05,175.85,175.77,7.37223289]
[1754671935262,5.6884,175.79,175.77,7.37223289]
[1754671935459,3.13,175.78,175.77,7.37223289]
[1754671936262,0.0390464,175.79,175.77,7.37223289]
[1754671936556,0.0390464,175.79,175.78,3.28]
[1754671936955,5.7272464,175.79,175.78,3.28]
[1754671937157,4.09223289,175.88,175.78,3.28]
[1754671937365,3.13,175.87,175.84,7.37223289]
[1754671937560,11.3672,175.94,175.86,4.09223289]
[1754671937561,3.13,175.9,175.86,4.09223289]
[1754671937761,8.8156,175.87,175.86,4.09223289]
[1754671937957,7.10766284,175.87,175.86,7.19827726]
[1754671938164,1.42206284,175.87,175.86,12.88417726]
[1754671938365,1.42206284,175.87,175.86,7.19827726]
[1754671938768,16.81011386,175.96,175.86,4.09223289]
[1754671938769,3.13,175.89,175.86,4.09223289]
[1754671938968,8.8155,175.88,175.85,0.04295788]
[1754671939168,8.8155,175.88,175.81,140.18]
[1754671939466,3.13,175.88,175.85,0.03823088]
[1754671939666,8.815,175.89,175.85,0.03823088]
[1754671939867,3.13,175.91,175.85,0.03823088]
[1754671940176,8.8148,175.9,175.86,3.28]
[1754671940572,8.8148,175.9,175.86,8.9659]
[1754671940772,8.8148,175.9,175.87,3.28]
[1754671940973,8.8148,175.9,175.88,3.28]
[1754671941173,8.815,175.89,175.88,3.28]
[1754671941373,8.815,175.89,175.88,4.09223289]
[1754671941873,3.13,175.87,175.86,3.28]
[1754671942073,3.13,175.87,175.86,7.37223289]
[1754671942466,3.13,175.87,175.86,4.09223289]
[1754671942674,8.8156,175.87,175.86,4.09223289]
[1754671943779,4.09223289,175.95,175.87,3.28]
[1754671943975,3.13,175.9,175.89,4.09223289]
[1754671944177,3.13,175.9,175.89,7.37223289]
[1754671944474,4.09223289,175.97,175.89,7.37223289]
[1754671944680,3.13,175.96,175.89,7.37223289]
[1754671944881,3.13,175.9,175.88,0.03738345]
[1754671945178,4.09223289,175.97,175.89,4.09223289]
[1754671945580,3.13,175.9,175.88,0.03738345]
[1754671945781,3.13,175.96,175.88,4.12961634]
[1754671945988,5.685,175.89,175.88,4.12961634]
[1754671946179,5.685,175.89,175.88,7.40961634]
[1754671946479,8.815,175.89,175.88,7.40961634]
[1754671947085,3.13,175.92,175.89,3.28]
[1754671947287,3.13,175.91,175.9,4.09223289]
[1754671947692,8.8143,175.91,175.9,7.37223289]
[1754671947883,8.8143,175.91,175.9,4.09223289]
[1754671949188,8.8147,175.9,175.89,0.03919843]
[1754671950283,8.8147,175.9,175.89,3.31919843]
[1754671951692,8.8147,175.9,175.89,0.03919843]
[1754671960495,8.8147,175.9,175.89,9.843e-05]
[1754671960798,8.7166,175.84,175.83,3.23]
[1754671961585,12.71788097,175.89,175.81,3.23]
[1754671961586,12.71788097,175.87,175.81,3.23]
[1754671961803,3.03,175.82,175.81,3.23]
[1754671962197,0.03891569,175.83,175.81,3.23]
[1754671962391,5.6872,175.82,175.81,3.23]
[1754671963004,5.6876,175.81,175.8,7.32223289]
[1754671963209,0.03932117,175.83,175.81,3.23]
[1754671963497,0.03932117,175.83,175.82,7.32223289]
[1754671964197,5.72622117,175.83,175.82,7.32223289]
[1754671964699,0.03932117,175.83,175.82,7.32223289]
[1754671965995,5.72622117,175.83,175.82,7.32223289]
[1754671966194,8.75622117,175.83,175.82,7.32223289]
[1754671966597,3.03,175.82,175.8,3.23]
[1754671966902,3.03,175.82,175.78,382.1]
[1754671966903,3.03,175.82,175.81,7.32223289]
[1754671967593,0.03932117,175.83,175.82,3.23]
[1754671968091,0.03932117,175.83,175.82,4.09223289]
[1754671968289,3.06932117,175.83,175.77,379.15223289]
[1754671968499,3.03,175.82,175.8,4.09223289]
[1754671968799,3.03,175.81,175.8,4.09223289]
[1754671969396,8.7176,175.81,175.8,4.09223289]
[1754671969599,3.03,175.81,175.8,4.09223289]
[1754671969800,3.03,175.82,175.8,4.09223289]
[1754671970000,3.03,175.82,175.77,144.15223289]
[1754671970001,0.03932117,175.83,175.81,4.09223289]
[1754671970300,0.03932117,175.83,175.82,0.51]
[1754671972605,0.03932117,175.83,175.82,6.1972]
[1754671972790,12.71788097,175.87,175.82,6.1972]
[1754671972791,12.71788097,175.88,175.83,0.51]
[1754671972996,12.71788097,175.88,175.85,4.09223289]
[1754671973301,8.7162,175.86,175.85,4.09223289]
[1754671973799,5.6867,175.84,175.83,4.09223289]
[1754671974001,8.7167,175.84,175.83,4.09223289]
[1754671974395,3.03,175.84,175.82,140.09852787]
[1754671974600,8.7169,175.83,175.82,140.09852787]
[1754671975002,3.03,175.83,175.82,140.09852787]
[1754671975201,3.03,175.83,175.82,140.60852787]
[1754671975700,8.7169,175.83,175.82,140.09852787]
[1754671977210,21.43478097,175.83,175.82,2.787e-05]
[1754671977395,3.03,175.76,175.75,4.60223289]
[1754671977600,3.03,175.76,175.75,144.13223289]
[1754671978404,8.7192,175.76,175.75,144.13223289]
[1754671978607,0.03650773,175.77,175.75,144.64223289]
[1754671978808,3.06650773,175.77,175.75,144.64223289]
[1754671978997,3.03,175.8,175.75,144.13223289]
[1754671979206,3.03,175.8,175.77,4.09223289]
[1754671979401,3.03,175.8,175.75,144.13223289]
[1754671979601,12.74575728,175.8,175.75,144.13223289]
[1754671979801,8.7192,175.76,175.75,144.13223289]
[1754671980597,5.6886,175.78,175.75,144.13223289]
[1754671980802,5.6886,175.78,175.77,4.09223289]
[1754671981403,8.7186,175.78,175.77,4.09223289]
[1754671984310,3.03,175.78,175.77,4.60223289]
[1754671985013,3.03,175.78,175.77,4.09223289]
[1754671985215,3.03,175.78,175.75,144.13223289]
[1754671985410,8.7192,175.76,175.75,144.13223289]
[1754671985809,8.7192,175.76,175.75,140.04]
[1754671987616,5.6904,175.73,175.71,4.09223289]
[1754671987809,3.03,175.76,175.71,4.09223289]
[1754671987810,3.09,175.72,175.71,4.09223289]
[1754671988015,3.09,175.72,175.71,144.15223289]
[1754671988606,3.09,175.72,175.69,144.15223289]
[1754671989013,3.09,175.7,175.69,144.15223289]
[1754671992004,5.6906,175.72,175.69,144.66223289]
[1754671992207,3.09,175.71,175.69,144.66223289]
[1754671992414,8.7809,175.71,175.69,144.66223289]
[1754671992611,5.6909,175.71,175.69,144.66223289]
[1754671992807,3.09,175.7,175.69,144.66223289]
[1754671993017,0.03917565,175.73,175.69,144.66223289]
[1754671993216,3.09,175.71,175.69,144.66223289]
[1754671993615,3.09,175.71,175.7,5.6911]
[1754671994020,3.09,175.71,175.69,144.66223289]
[1754671994215,3.09,175.7,175.69,140.57]
[1754671994418,0.03917565,175.73,175.7,0.51]
[1754671994614,5.6889,175.77,175.74,5.6896]
[1754671994814,3.09,175.76,175.75,140.08]
[1754671995226,3.09,175.76,175.75,145.7695]
[1754671995925,3.09,175.82,175.75,144.17223289]
[1754671996120,3.09,175.82,175.8,4.09223289]
[1754671996520,3.09,175.81,175.8,4.09223289]
[1754671997216,3.09,175.81,175.8,9.78013289]
[1754671997421,3.09,175.85,175.8,4.60223289]
[1754671997621,3.09,175.85,175.82,4.09223289]
[1754671998414,5.6869,175.83,175.82,4.09223289]
[1754671998613,8.7769,175.83,175.82,4.09223289]
[1754671999321,3.09,175.83,175.82,4.09223289]
[1754672003326,8.7769,175.83,175.82,4.09223289]
[1754672003727,12.74575728,175.86,175.83,0.51]
[1754672003924,3.09,175.86,175.85,4.09223289]
[1754672004430,8.7759,175.86,175.85,4.09223289]
[1754672004626,3.09,175.86,175.85,4.09223289]
[1754672005625,8.7763,175.85,175.84,0.03910725]
[1754672008434,8.7763,175.85,175.84,4.13134014]
[1754672009231,12.74575728,175.89,175.84,4.13134014]
[1754672009433,12.74575728,175.89,175.87,4.09223289]
[1754672009628,12.74575728,175.9,175.87,4.09223289]
[1754672009827,3.09,175.88,175.87,4.09223289]
[1754672010742,5.6853,175.88,175.87,4.09223289]
[1754672011032,8.7753,175.88,175.87,4.09223289]
[1754672013939,3.09,175.89,175.87,4.60223289]
[1754672014235,3.09,175.89,175.88,4.09223289]
[1754672016728,3.09,175.89,175.88,9.77753289]
[1754672016930,12.74575728,175.95,175.89,0.52]
[1754672017135,3.18,175.94,175.93,4.09223289]
[1754672017329,3.18,175.94,175.93,0.63530962]
[1754672018234,196.71598254,175.98,175.93,1.15530962]
[1754672018235,3.18,175.96,175.93,1.15530962]
[1754672018439,3.18,175.96,175.95,4.09223289]
[1754672020035,8.8627,175.96,175.95,4.09223289]
[1754672020737,5.683,175.95,175.93,4.09223289]
[1754672020939,3.18,175.94,175.93,4.09223289]
[1754672021840,8.8633,175.94,175.93,4.09223289]
[1754672022040,3.18,175.94,175.92,0.03712629]
[1754672022440,8.8637,175.93,175.92,0.03712629]
[1754672025640,3.18,175.93,175.92,0.03712629]
[1754672026234,3.18,175.94,175.92,0.55712629]
[1754672026543,3.18,175.94,175.93,4.09223289]
[1754672026743,8.8633,175.94,175.93,4.09223289]
[1754672027732,8.8637,175.93,175.92,0.03712629]
[1754672028139,3.18,175.93,175.92,0.03712629]
[1754672028848,8.8637,175.93,175.92,0.03712629]
[1754672029038,3.18,175.93,175.92,0.03712629]
[1754672029941,8.8637,175.93,175.92,0.03712629]
[1754672030138,3.18,175.93,175.92,0.03712629]
[1754672031047,3.18,175.99,175.92,0.55712629]
[1754672031248,3.18,175.99,175.95,4.09223289]
[1754672031838,5.6827,175.96,175.95,4.09223289]
[1754672032042,8.8627,175.96,175.95,4.09223289]
[1754672032947,8.863,175.95,175.94,0.04040068]
[1754672033344,3.18,175.95,175.91,4.09223289]
[1754672033549,3.18,175.92,175.89,4.09223289]
[1754672033754,4.09223289,175.98,175.93,0.04266624]
[1754672033950,4.09223289,175.98,175.89,4.09223289]
[1754672034151,3.18,175.9,175.89,4.09223289]
[1754672036653,3.18,175.92,175.9,0.52]
[1754672036956,3.18,175.92,175.91,4.09223289]
[1754672037956,8.864,175.92,175.91,4.09223289]
[1754672038253,3.18,175.91,175.9,0.04330166]
[1754672038453,3.18,175.91,175.84,5.6864]
[1754672038753,3.18,175.91,175.84,4.09223289]
[1754672039252,4.13509488,175.92,175.84,4.09223289]
[1754672039459,3.18,175.86,175.83,139.94]
[1754672039662,12.70065292,175.86,175.8,4.09223289]
[1754672039858,3.18,175.85,175.8,9.77993289]
[1754672040059,12.70065292,175.84,175.79,139.94]
[1754672040262,3.18,175.83,175.79,140.46]
[1754672040453,8.8671,175.83,175.8,9.78003289]
[1754672040648,3.18,175.81,175.8,9.78003289]
[1754672041258,3.18,175.81,175.8,10.30003289]
[1754672041456,3.18,175.83,175.8,10.30003289]
[1754672041656,3.18,175.82,175.79,139.94]
[1754672041957,3.18,175.8,175.79,139.94]
[1754672043458,3.18,175.8,175.79,145.6282]
[1754672043659,3.18,175.8,175.79,146.1482]
[1754672044052,0.0398905,175.81,175.8,5.6879]
[1754672044255,3.2198905,175.81,175.8,5.6879]
[1754672044552,3.2198905,175.81,175.79,139.94]
[1754672044758,12.74054342,175.81,175.79,139.94]
[1754672044956,3.18,175.8,175.79,139.94]
[1754672047756,8.8679,175.8,175.79,139.94]
[1754672047956,18.38855292,175.8,175.79,139.94]
[1754672048159,8.8679,175.8,175.79,139.94]
[1754672048562,12.70065292,175.8,175.79,139.94]
[1754672048955,3.18,175.8,175.79,139.94]
[1754672050463,3.18,175.8,175.74,382.28]
[1754672050464,3.0,175.79,175.72,0.51]
[1754672050660,3.0,175.76,175.74,5.6895]
[1754672050855,9.52370597,175.76,175.73,144.60223289]
[1754672051061,3.0,175.75,175.73,144.60223289]
[1754672051766,3.0,175.75,175.74,0.51]
[1754672052168,3.0,175.75,175.74,6.1998]
[1754672054169,3.0,175.75,175.74,5.6898]
[1754672054871,3.0,175.74,175.73,140.0]
[1754672055067,3.0,175.74,175.73,140.51]
[1754672056171,3.0,175.74,175.73,146.2001]
[1754672058870,3.0,175.76,175.75,5.6892]
[1754672059268,3.04124689,175.77,175.76,6.1991]
[1754672059575,3.04124689,175.77,175.76,149.82133289]
[1754672060965,3.04124689,175.77,175.76,150.33133289]
[1754672061465,3.04124689,175.77,175.76,149.82133289]
[1754672068078,3.04124689,175.77,175.76,140.04]
[1754672068671,8.73004689,175.77,175.76,140.04]
[1754672069666,3.04124689,175.77,175.76,140.04]
[1754672070975,8.73004689,175.77,175.76,140.04]
[1754672071270,3.04124689,175.77,175.72,0.04079311]
[1754672071483,5.69,175.74,175.73,140.02]
[1754672071681,8.69,175.74,175.73,140.02]
[1754672071973,3.0,175.73,175.72,0.04079311]
[1754672072773,8.6901,175.73,175.72,0.04079311]
[1754672072972,5.6901,175.73,175.72,0.04079311]
[1754672073176,3.0,175.73,175.69,140.02]
[1754672073376,4.09223289,175.75,175.69,140.02]
[1754672073570,3.0,175.7,175.69,140.02]
[1754672074775,3.0,175.7,175.69,145.7114]
[1754672075878,3.0,175.7,175.69,140.02]
[1754672076573,3.0,175.7,175.69,150.32363289]
[1754672076777,0.04114897,175.71,175.7,0.52]
[1754672076778,3.16114897,175.71,175.7,0.52]
[1754672077376,3.16114897,175.71,175.69,144.11223289]
[1754672077575,3.16114897,175.71,175.7,5.6911]
[1754672078380,3.16114897,175.71,175.7,6.2111]
[1754672079482,3.16114897,175.71,175.7,5.6911]
[1754672081281,3.16114897,175.71,175.7,6.2111]
[1754672082083,3.16114897,175.71,175.7,5.6911]
[1754672084483,3.16114897,175.71,175.69,140.02]
[1754672084685,12.68485494,175.71,175.69,145.7114]
[1754672084984,3.12,175.7,175.69,145.7114]
[1754672086292,12.64370597,175.7,175.69,145.7114]
[1754672087883,12.64370597,175.7,175.69,140.02]
[1754672088487,3.12,175.7,175.69,140.02]
[1754672089090,3.12,175.7,175.69,145.7314]
[1754672089886,3.12,175.7,175.69,5.6914]
[1754672090589,3.12,175.7,175.69,145.7114]
[1754672090790,12.66191931,175.7,175.69,145.7114]
[1754672091386,3.12,175.7,175.69,145.7114]
[1754672091689,0.04114897,175.71,175.7,5.6911]
[1754672091986,9.58448322,175.71,175.7,10.30333289]
[1754672092196,3.12,175.74,175.7,4.09223289]
[1754672092391,3.12,175.74,175.73,10.30233289]
[1754672092598,3.12,175.76,175.73,144.63223289]
[1754672092789,3.12,175.75,175.74,6.2098]
[1754672092986,3.12,175.75,175.74,144.11223289]
[1754672093188,3.12,175.75,175.74,116.00993955]
[1754672095198,3.12,175.75,175.7,4.09223289]
[1754672095392,12.74575728,175.75,175.71,5.6906]
[1754672095587,3.12,175.74,175.71,140.02]
[1754672095788,15.86575728,175.74,175.71,140.02]
[1754672095989,5.6903,175.73,175.71,140.02]
[1754672096290,3.12,175.72,175.71,140.02]
[1754672096586,3.12,175.72,175.71,145.7108]
[1754672097098,3.12,175.73,175.72,5.6902]
[1754672098293,3.12,175.73,175.72,9.78243289]
[1754672099691,18.4714397,175.76,175.72,10.30243289]
[1754672099894,5.72568242,175.76,175.73,5.6901]
[1754672100095,3.12,175.74,175.73,5.6901]
[1754672100796,3.12,175.74,175.72,10.30253289]
[1754672100999,3.12,175.73,175.72,10.30253289]
[1754672101592,3.12,175.73,175.72,9.78253289]
[1754672102299,12.7822397,175.76,175.73,0.52]
[1754672102593,5.6896,175.75,175.73,4.09223289]
[1754672102793,3.12,175.74,175.73,144.09223289]
[1754672103187,3.12,175.74,175.73,120.08178128]
[1754672104594,3.12,175.74,175.73,126.29188128]
[1754672104790,3.12,175.75,175.74,0.52]
[1754672104990,3.12,175.75,175.73,120.08178128]
[1754672106001,3.12,175.74,175.73,120.08178128]
[1754672106999,8.8098,175.74,175.73,120.08178128]
[1754672107300,3.12,175.74,175.73,120.08178128]
[1754672108002,15.86575728,175.74,175.73,120.08178128]
[1754672108195,12.74575728,175.74,175.7,144.07223289]
[1754672108396,3.17,175.73,175.7,144.07223289]
[1754672108698,5.6905,175.72,175.7,144.07223289]
[1754672108898,3.17,175.71,175.7,144.07223289]
[1754672110205,3.17,175.71,175.7,139.98]
[1754672110803,3.17,175.71,175.7,135.71102709]
[1754672111297,8.8608,175.71,175.7,135.71102709]
[1754672111504,3.17,175.71,175.7,135.71102709]
[1754672113305,3.17,175.71,175.7,111.69797691]
[1754672113802,3.17,175.71,175.7,117.38907691]
[1754672114002,3.17,175.71,175.7,112.21797691]
[1754672114990,3.17,175.71,175.7,111.69797691]
[1754672115196,3.17,175.71,175.7,117.38907691]
[1754672115700,3.17,175.71,175.7,111.69797691]
[1754672116004,3.17,175.71,175.7,108.14043634]
[1754672116701,3.17,175.71,175.7,113.83153634]
[1754672117504,3.17,175.71,175.7,108.14043634]
[1754672119703,12.78438102,175.72,175.71,0.52]
[1754672119908,0.03862374,175.72,175.71,0.52]
[1754672120897,3.20862374,175.72,175.7,112.23266923]
[1754672121701,3.20862374,175.72,175.71,9.78303289]
[1754672123398,12.74575728,175.74,175.73,5.6901]
[1754672123708,3.17,175.78,175.73,4.09223289]
[1754672123909,3.17,175.77,175.74,139.96]
[1754672124101,3.17,175.77,175.76,4.09223289]
[1754672124710,3.17,175.77,175.76,9.78133289]
[1754672125408,3.17,175.77,175.75,0.04021068]
[1754672125620,3.17,175.77,175.75,4.13244357]
[1754672126004,3.17,175.76,175.75,0.04021068]
[1754672126212,3.17,175.76,175.74,4.09223289]
[1754672126411,3.17,175.76,175.73,139.94]
[1754672126711,5.6892,175.76,175.74,4.09223289]
[1754672126913,3.17,175.75,175.74,4.09223289]
[1754672127915,8.8595,175.75,175.74,4.09223289]
[1754672128110,8.8595,175.75,175.73,139.94]
[1754672128306,3.17,175.74,175.73,139.94]
[1754672130216,8.8598,175.74,175.73,139.94]
[1754672130614,3.17,175.73,175.72,4.09223289]
[1754672131115,3.17,175.75,175.72,4.09223289]
[1754672131315,3.17,175.75,175.7,139.92]
[1754672131316,0.04275922,175.74,175.7,139.92]
[1754672131519,3.17,175.81,175.73,4.09223289]
[1754672131714,5.6878,175.8,175.78,4.09223289]
[1754672131917,3.17,175.79,175.78,4.09223289]
[1754672132323,8.8582,175.79,175.78,4.09223289]
[1754672132517,3.17,175.79,175.76,4.09223289]
[1754672132820,3.17,175.78,175.77,0.0368515]
[1754672133021,8.8585,175.78,175.77,0.0368515]
[1754672134016,8.8585,175.78,175.75,4.09223289]
[1754672134218,15.93648109,175.76,175.75,4.09223289]
[1754672134520,3.17,175.76,175.75,4.09223289]
[1754672134720,3.17,175.76,175.75,9.78173289]
[1754672135916,3.17,175.76,175.74,145.5897]
[1754672136120,3.17,175.76,175.74,149.68193289]
[1754672136320,3.17,175.76,175.75,5.6895]
[1754672136526,12.76648109,175.76,175.75,5.6895]
[1754672136820,18.45538109,175.77,175.74,143.99223289]
[1754672137019,0.04322712,175.79,175.74,140.43532034]
[1754672137020,12.76648109,175.75,175.74,140.43532034]
[1754672137235,15.76648109,175.75,175.74,140.43532034]
[1754672138326,3.0,175.75,175.74,140.43532034]
[1754672141626,12.76648109,175.77,175.74,140.43532034]
[1754672141817,3.0,175.76,175.74,140.43532034]
[1754672142520,15.76648109,175.77,175.74,140.43532034]
[1754672142727,12.76648109,175.77,175.74,146.12482034]
[1754672143031,12.76648109,175.77,175.74,140.43532034]
[1754672143032,3.0,175.75,175.74,140.43532034]
[1754672144335,3.0,175.75,175.74,146.12512034]
[1754672145326,3.0,175.75,175.74,4.09223289]
[1754672145520,3.0,175.75,175.74,139.88]
[1754672145725,15.76648109,175.75,175.74,139.88]
[1754672146433,3.0,175.76,175.74,143.97223289]
[1754672146629,3.0,175.75,175.74,143.97223289]
[1754672147037,0.04322712,175.79,175.74,143.97223289]
[1754672147225,3.0,175.78,175.74,143.97223289]
[1754672147821,3.0,175.77,175.74,143.97223289]
[1754672148225,3.0,175.77,175.75,5.6892]
[1754672148428,3.0,175.77,175.74,143.97223289]
[1754672148631,3.0,175.78,175.76,4.09223289]
[1754672149630,0.04322712,175.79,175.76,4.09223289]
[1754672149822,3.04322712,175.79,175.78,4.09223289]
[1754672150125,20.94099208,175.9,175.78,4.09223289]
[1754672150126,3.0,175.81,175.78,143.95223289]
[1754672150329,3.0,175.81,175.8,9.78003289]
[1754672150833,5.6867,175.84,175.8,9.78003289]
[1754672150834,3.0,175.83,175.8,4.09223289]
[1754672151035,386.47223289,175.91,175.82,4.09223289]
[1754672151526,3.0,175.9,175.82,9.77923289]
[1754672151936,3.0,175.9,175.84,0.04251964]
[1754672152136,3.0,175.85,175.84,0.04251964]
[1754672152836,5.6862,175.85,175.84,0.04251964]
[1754672153036,8.6862,175.85,175.84,0.04251964]
[1754672157043,8.6862,175.85,175.84,1.964e-05]
[1754672163340,3.0,175.79,175.78,139.86]
[1754672163549,3.0,175.79,175.72,4.09223289]
[1754672163839,5.69,175.74,175.71,296.28345293]
[1754672164146,3.0,175.73,175.71,296.28345293]
[1754672164343,3.0,175.73,175.72,5.6904]
[1754672164542,0.04286311,175.74,175.72,5.6904]
[1754672164738,0.04286311,175.74,175.72,4.09223289]
[1754672165043,0.04286311,175.74,175.73,5.6901]
[1754672165445,0.04286311,175.74,175.72,9.78253289]
[1754672165645,0.04286311,175.74,175.72,4.09223289]
[1754672165845,3.04286311,175.74,175.72,4.09223289]
[1754672166042,0.04286311,175.74,175.72,4.09223289]
[1754672166442,3.28286311,175.74,175.72,4.09223289]
[1754672166847,3.28286311,175.74,175.72,9.78263289]
[1754672167447,3.28286311,175.74,175.73,5.6901]
[1754672167636,0.04286311,175.74,175.73,5.6901]
[1754672173850,3.28286311,175.74,175.73,5.6901]
[1754672174251,3.28286311,175.74,175.72,5.6903]
[1754672174550,3.24,175.73,175.72,9.78253289]
[1754672175156,3.24,175.73,175.72,149.58253289]
[1754672178856,3.24,175.73,175.72,143.89223289]
[1754672180064,3.24,175.73,175.72,139.8]
[1754672181762,3.24,175.73,175.72,145.4904]
[1754672183556,0.04286311,175.74,175.73,5.6901]
[1754672187058,3.28286311,175.74,175.73,5.6901]
[1754672188260,0.04286311,175.74,175.73,5.6901]
[1754672188858,3.28286311,175.74,175.73,5.6901]
[1754672189063,0.04286311,175.74,175.73,5.6901]
[1754672191254,9.57169208,175.85,175.73,5.7]
[1754672191553,17.0461,175.99,175.71,150.83155104]
[1754672191554,3.24,175.91,175.84,4.09223289]
[1754672191761,3.24,175.91,175.89,4.09223289]
[1754672192062,3.24,175.91,175.9,139.76]
[1754672192962,8.9243,175.91,175.9,139.76]
[1754672195867,3.24,175.91,175.9,139.76]
[1754672196160,3.24,175.91,175.9,143.85223289]